Workbook

Sheet お支払について
B2: 請求書の提出及びお支払について
B3: 請求書締切日・提出日 | C3: 毎月月末締切、翌月第３営業日必着 提出期限迄に請求書が未着の場合は、翌月処理になる場合がありますのでご注意下さい。
B4: お支払日 | C4: 締切日の翌月末日支払い（末日が休日の場合は前営業日）
B5: お支払方法 | C5: 当社所定の支払い条件による
B6: *お支払に関するご不明点などについては、管理本部（03-5645-3232）までお問い合わせください。
B8: 請求書のご提出先一覧
B9: 支店・事業所 | C9: 住所 | D9: 電話番号
B10: 東北支店 | C10: 〒980-0804 宮城県仙台市青葉区大町1-3-2 仙台MDビル２F | D10: 022-221-2316
B11: 東京支店 | C11: 〒103-0012 東京都中央区日本橋堀留町1-2-10 イトーピア日本橋SAビル３Ｆ | D11: 03-5645-3236
B12: 中部支店 | C12: 〒464-0075 愛知県名古屋市千種区内山3-29-10 朝日生命千種AMビル４F | D12: 052-744-0717
B13: 西日本支店 | C13: 〒541-0046 大阪府大阪市中央区平野町2－6－6 ヒロセ平野町ビル５Ｆ | D13: 06-6233-5300
B14: 九州支店 | C14: 〒810-0011 福岡県福岡市中央区高砂1-11-1 福岡ゼネラルビル６Ｆ | D14: 092-534-8425
B15: 沖縄支店 | C15: 〒900-0033 沖縄県那覇市久米2-4-16 三井生命那覇ビル５F | D15: 098-862-8306
B16: 本社機材センター | C16: 〒265-0066 千葉県千葉市若葉区多部田町７９０ | D16: 043-226-0211
B17: 奈良機材センター | C17: 〒636-0226 奈良県磯城郡田原本町唐古２９０ | D17: 0744-33-6246
B18: ＊請求書ご提出にあたってのご不明点などについては各事業所へ直接お問い合わせ下さい。

Sheet 使い方
B2: 使い方
C3: 1. | D3: 入力は「請求書（表紙）」または「請求明細」の黄色の箇所のみおこなって下さい。
D4: それ以外の箇所は変更しないでください。また、行・列の追加、削除や書式の変更はしないでください。
C5: 2. | D5: 請求書は工事コード毎に作成し、工事コードが異なる場合には請求書も分けて作成してください。
C6: 3. | D6: 「工事コード」、「工事・工種名」、「取引先コード」、「発注番号」を必ず記入してください。不明のときは工事部に照会してください。
C7: 4. | D7: 請求の内訳が請求書（表紙）に収まらない場合は請求明細を使用してください。
D8: 請求明細を利用する場合は請求明細に内訳を記載し、請求書（表紙）には合計金額を記入してください。
C9: 5. | D9: 請求書ご提出の際は印刷の上、「支店用」と「本社用」をご提出ください。請求明細を利用する場合は2部ご提出ください。

Sheet 請求書（表紙）
A1: （請書請求用） | O1: （請書請求用） | AC1: （請書請求用）
F2: 請 求 書 | T2: 請 求 書 | AH2: 請 求 書
B3: 成幸利根株式会社 | D3: 御中 | J3: 住所 | P3: 成幸利根株式会社 | R3: 御中 | X3: 住所 | Y3: =IF(K3="","",K3) ->  | AD3: 成幸利根株式会社 | AF3: 御中 | AL3: 住所 | AM3: =IF(Y3="","",Y3) -> 
F4: 月度 | T4: 月度 | U4: =IF(G4="","",G4) ->  | AH4: 月度 | AI4: =U4 -> 
B5: 請求金額 （税込） | C5: =IF(K31=0,"",K31) ->  | F5: 工事コード | J5: 社名 | P5: 請求金額 （税込） | Q5: =C5 ->  | T5: 工事コード | U5: =IF(G5="","",G5) ->  | V5: =IF(H5="","",H5) ->  | X5: 社名 | Y5: =IF(K5="","",K5) ->  | AD5: 請求金額 （税込） | AE5: =Q5 ->  | AH5: 工事コード | AI5: =IF(U5="","",U5) ->  | AJ5: =IF(V5="","",V5) ->  | AK5: =IF(W5="","",W5) ->  | AL5: 社名 | AM5: =IF(Y5="","",Y5) -> 
F6: 工事・工種名 | T6: 工事・工種名 | Y6: =IF(K6="","",K6) ->  | AH6: 工事・工種名 | AM6: =IF(Y6="","",Y6) -> 
F7: 発注番号 | J7: 取引先コード | T7: 発注番号 | U7: =IF(G7="","",UPPER(ASC(G7))) ->  | X7: 取引先コード | Y7: =IF(K7="","",K7) ->  | AH7: 発注番号 | AL7: 取引先コード | AM7: =Y7 -> 
B9: 内 訳 | D9: 契 約 | H9: 前回まで出来高 | J9: 今回出来高 | L9: 累計出来高 | P9: 名 称 | R9: 契 約 内 訳 | V9: 前回まで出来高 | X9: 今回出来高 | Z9: 累計出来高 | AD9: 名 称 | AF9: 契 約 内 訳 | AJ9: 前回まで出来高 | AL9: 今回出来高 | AN9: 累計出来高
D10: 数量 | E10: 単位 | F10: 単価 | G10: 金額 | H10: 数量 | I10: 金額 | J10: 数量 | K10: 金額 | L10: 数量 | M10: 金額 | R10: 数量 | S10: 単位 | T10: 単価 | U10: 金額 | V10: 数量 | W10: 金額 | X10: 数量 | Y10: 金額 | Z10: 数量 | AA10: 金額 | AF10: 数量 | AG10: 単位 | AH10: 単価 | AI10: 金額 | AJ10: 数量 | AK10: 金額 | AL10: 数量 | AM10: 金額 | AN10: 数量 | AO10: 金額
L11: =SUM(H11,J11) -> 0 | M11: =SUM(I11,K11) -> 0 | P11: =IF(B11="","",B11) ->  | R11: =IF(D11="","",D11) ->  | S11: =IF(E11="","",E11) ->  | T11: =IF(F11="","",F11) ->  | U11: =IF(G11="","",G11) ->  | V11: =IF(H11="","",H11) ->  | W11: =IF(I11="","",I11) ->  | X11: =IF(J11="","",J11) ->  | Y11: =IF(K11="","",K11) ->  | Z11: =IF(L11="","",L11) -> 0 | AA11: =IF(M11="","",M11) -> 0 | AD11: =IF(P11="","",P11) ->  | AF11: =IF(R11="","",R11) ->  | AG11: =IF(S11="","",S11) ->  | AH11: =IF(T11="","",T11) ->  | AI11: =IF(U11="","",U11) ->  | AJ11: =IF(V11="","",V11) ->  | AK11: =IF(W11="","",W11) ->  | AL11: =IF(X11="","",X11) ->  | AM11: =IF(Y11="","",Y11) ->  | AN11: =IF(Z11="","",Z11) -> 0 | AO11: =IF(AA11="","",AA11) -> 0
L12: =SUM(H12,J12) -> 0 | M12: =SUM(I12,K12) -> 0 | Z12: 0 | AA12: 0 | AD12: =IF(P12="","",P12) ->  | AN12: 0 | AO12: 0
L13: 0 | M13: 0 | Z13: 0 | AA13: 0 | AN13: 0 | AO13: 0
L14: 0 | M14: 0 | Z14: 0 | AA14: 0 | AN14: 0 | AO14: 0
L15: 0 | M15: 0 | Z15: 0 | AA15: 0 | AN15: 0 | AO15: 0
L16: 0 | M16: 0 | Z16: 0 | AA16: 0 | AN16: 0 | AO16: 0
L17: 0 | M17: 0 | Z17: 0 | AA17: 0 | AN17: 0 | AO17: 0
L18: 0 | M18: 0 | Z18: 0 | AA18: 0 | AN18: 0 | AO18: 0
L19: 0 | M19: =SUM(I19,K19) -> 0 | Z19: 0 | AA19: 0 | AN19: 0 | AO19: 0
L20: 0 | M20: 0 | Z20: 0 | AA20: 0 | AN20: 0 | AO20: 0
L21: 0 | M21: 0 | Z21: 0 | AA21: 0 | AN21: 0 | AO21: 0
L22: 0 | M22: 0 | Z22: 0 | AA22: 0 | AN22: 0 | AO22: 0
L23: 0 | M23: =SUM(I23,K23) -> 0 | Z23: 0 | AA23: 0 | AN23: 0 | AO23: 0
L24: 0 | M24: 0 | Z24: 0 | AA24: 0 | AN24: 0 | AO24: 0
L25: 0 | M25: =SUM(I25,K25) -> 0 | Z25: 0 | AA25: 0 | AN25: 0 | AO25: 0
B26: 備 考 | H26: 出来高 計 | I26: =SUM(I11:I25)-SUMIF(B11:C25,"（ 小 計 ）",I11:I25) -> 0 | J26: 出来高 計 | K26: =SUM(K11:K25)-SUMIF(B11:C25,"（ 小 計 ）",K11:K25) -> 0 | L26: 出来高 計 | M26: =SUM(I26,K26) -> 0 | P26: 備 考 | V26: 出来高 計 | W26: =IF(I26="","",I26) -> 0 | X26: 出来高 計 | Y26: =IF(K26="","",K26) -> 0 | Z26: 出来高 計 | AA26: =IF(M26="","",M26) -> 0 | AD26: 備 考 | AJ26: 出来高 計 | AK26: 0 | AL26: 出来高 計 | AM26: 0 | AN26: 出来高 計 | AO26: 0
H27: 保留金 | J27: 保留金 | L27: 保留金 | M27: =SUM(I27,K27) -> 0 | P27: =IF(B27="","",B27) ->  | Q27: =IF(C27="","",C27) ->  | V27: 保留金 | X27: 保留金 | Z27: 保留金 | AA27: 0 | AD27: =IF(P27="","",P27) ->  | AE27: =IF(Q27="","",Q27) ->  | AJ27: 保留金 | AL27: 保留金 | AN27: 保留金 | AO27: 0
H28: 保留金解除 | J28: 保留金解除 | L28: 保留金解除 | M28: 0 | V28: 保留金解除 | X28: 保留金解除 | Z28: 保留金解除 | AA28: 0 | AJ28: 保留金解除 | AL28: 保留金解除 | AN28: 保留金解除 | AO28: 0
D29: 契約金額 (税抜) | G29: =SUM(G11:G25)-SUMIF(B11:C25,"（ 小 計 ）",G11:G25) -> 0 | H29: 請求金額(税抜) | I29: =SUM(I26:I28) -> 0 | J29: 請求金額(税抜) | K29: =SUM(K26:K28) -> 0 | L29: 請求金額(税抜) | M29: 0 | R29: 契約金額 (税抜) | U29: =IF(G29="","",G29) -> 0 | V29: 請求金額(税抜) | W29: 0 | X29: 請求金額(税抜) | Y29: 0 | Z29: 請求金額(税抜) | AA29: 0 | AF29: 契約金額 (税抜) | AI29: =IF(U29="","",U29) -> 0 | AJ29: 請求金額(税抜) | AK29: 0 | AL29: 請求金額(税抜) | AM29: 0 | AN29: 請求金額(税抜) | AO29: 0
D30: 消費税 | F30: 0.08 | G30: =G29*F30 -> 0 | H30: 消費税 | I30: =I29*F30 -> 0 | J30: 消費税 | K30: =K29*F30 -> 0 | L30: 消費税 | M30: =SUM(I30,K30) -> 0 | R30: 消費税 | T30: =$F$30 -> 0.08 | U30: =IF(G30="","",G30) -> 0 | V30: 消費税 | W30: 0 | X30: 消費税 | Y30: 0 | Z30: 消費税 | AA30: 0 | AF30: 消費税 | AH30: =$F$30 -> 0.08 | AI30: =IF(U30="","",U30) -> 0 | AJ30: 消費税 | AK30: 0 | AL30: 消費税 | AM30: 0 | AN30: 消費税 | AO30: 0
D31: 契約金額 (税込) | G31: =SUM(G29:G30) -> 0 | H31: 請求金額(税込) | I31: =SUM(I29:I30) -> 0 | J31: 請求金額(税込) | K31: =SUM(K29:K30) -> 0 | L31: 請求金額(税込) | M31: =SUM(I31,K31) -> 0 | R31: 契約金額 (税込) | U31: =IF(G31="","",G31) -> 0 | V31: 請求金額(税込) | W31: 0 | X31: 請求金額(税込) | Y31: 0 | Z31: 請求金額(税込) | AA31: 0 | AF31: 契約金額 (税込) | AI31: =IF(U31="","",U31) -> 0 | AJ31: 請求金額(税込) | AK31: 0 | AL31: 請求金額(税込) | AM31: 0 | AN31: 請求金額(税込) | AO31: 0
P33: 決裁 | Q33: 査定・承認 | V33: 受付 | AD33: 決裁 | AE33: 査定・承認 | AJ33: 受付
C34: ※記入上の注意事項 | Z34: 伝票番号
C35: 1. 一現場一枚として記入し、二現場以上ある場合には現場別に請求書を作成してください。
C36: 2. 工事コード、工事・工種名、注文番号、取引先コードを必ず記入してください。不明のときは工事部に照会してください。

Sheet 請求明細
A1: 1 | N1: ="( "&A1&" / "&$N$40&" )" -> ( 1 / 1 )
C2: （ 請 求 明 細 ）
C4: 月度 | D4: =IF('請求書（表紙）'!G4="","",'請求書（表紙）'!G4) -> 
C5: 工事コード | D5: =IF('請求書（表紙）'!G5="","",'請求書（表紙）'!G5) -> 
C6: 工事・工種名 | D6: =IF('請求書（表紙）'!G6="","",'請求書（表紙）'!G6) ->  | K6: 社名 | L6: ='請求書（表紙）'!K5 &" "&'請求書（表紙）'!K6 -> 
C7: 発注番号 | D7: =IF('請求書（表紙）'!G7="","",'請求書（表紙）'!G7) ->  | K7: 取引先コード | L7: =IF('請求書（表紙）'!K7="","",'請求書（表紙）'!K7) -> 
C9: 内 訳 | E9: 契 約 | I9: 前回まで出来高 | K9: 今回出来高 | M9: 累計出来高
E10: 数量 | F10: 単位 | G10: 単価 | H10: 金額 | I10: 数量 | J10: 金額 | K10: 数量 | L10: 金額 | M10: 数量 | N10: 金額
A11: 1 | M11: =SUM(I11,K11) -> 0 | N11: =SUM(J11,L11) -> 0
A12: 1 | M12: =SUM(I12,K12) -> 0 | N12: =SUM(J12,L12) -> 0
A13: 1 | M13: =SUM(I13,K13) -> 0 | N13: =SUM(J13,L13) -> 0
A14: 1 | M14: 0 | N14: 0
A15: 1 | M15: 0 | N15: 0
A16: 1 | M16: 0 | N16: 0
A17: 1 | M17: 0 | N17: 0
A18: 1 | M18: 0 | N18: 0
A19: 1 | M19: 0 | N19: 0
A20: 1 | M20: 0 | N20: 0
A21: 1 | M21: 0 | N21: 0
A22: 1 | M22: 0 | N22: 0
A23: 1 | M23: 0 | N23: 0
A24: 1 | M24: 0 | N24: 0
A25: 1 | M25: 0 | N25: 0
A26: 1 | M26: 0 | N26: 0
A27: 1 | M27: 0 | N27: 0
A28: 1 | M28: 0 | N28: 0
A29: 1 | M29: 0 | N29: 0
A30: 1 | M30: 0 | N30: 0
A31: 1 | M31: 0 | N31: 0
A32: 1 | M32: 0 | N32: 0
A33: 1 | M33: 0 | N33: 0
A34: 1 | M34: 0 | N34: 0
A35: 1 | M35: 0 | N35: 0
C36: ページ 計 | H36: =SUM(H11:H35) -> 0 | J36: =SUM(J11:J35) -> 0 | L36: =SUM(L11:L35) -> 0 | N36: =SUM(N11:N35) -> 0
N39: ページ数
N40: =MAX(A:A) -> 1

Sheet 記入例（明細なし）
A1: （請書請求用） | O1: （請書請求用） | AC1: （請書請求用）
F2: 請 求 書 | T2: 請 求 書 | AH2: 請 求 書
B3: 成幸利根株式会社 | D3: 御中 | J3: 住所 | K3: 東京都○○区□□1-1 | P3: 成幸利根株式会社 | R3: 御中 | X3: 住所 | Y3: =IF(K3="","",K3) -> 東京都○○区□□1-1 | AD3: 成幸利根株式会社 | AF3: 御中 | AL3: 住所 | AM3: =IF(Y3="","",Y3) -> 東京都○○区□□1-1
F4: 月度 | G4: 2016-08-01 | T4: 月度 | U4: =IF(G4="","",G4) -> 2016-08-01 | AH4: 月度 | AI4: =U4 -> 2016-08-01
B5: 請求金額 （税込） | C5: =IF(K31=0,"",K31) -> 9234000 | F5: 工事コード | G5: 1000001-0001 | J5: 社名 | K5: ○○重機株式会社 | P5: 請求金額 （税込） | Q5: =Y31 -> 9234000 | T5: 工事コード | U5: =IF(G5="","",G5) -> 1000001-0001 | V5: =IF(H5="","",H5) ->  | X5: 社名 | Y5: =IF(K5="","",K5) -> ○○重機株式会社 | AD5: 請求金額 （税込） | AE5: =AM31 -> 9234000 | AH5: 工事コード | AI5: =IF(U5="","",U5) -> 1000001-0001 | AL5: 社名 | AM5: =IF(Y5="","",Y5) -> ○○重機株式会社
F6: 工事・工種名 | G6: ○○ビル建設工事 | K6: □□支店 | T6: 工事・工種名 | U6: ○○ビル建設工事 | Y6: =IF(K6="","",K6) -> □□支店 | AH6: 工事・工種名 | AI6: ○○ビル建設工事 | AM6: =IF(Y6="","",Y6) -> □□支店
F7: 注文番号 | G7: HCI150000201 | J7: 取引先コード | K7: 5007500 | T7: 注文番号 | U7: HCI150000201 | X7: 取引先コード | Y7: =IF(K7="","",K7) -> 5007500 | AH7: 注文番号 | AI7: HCI150000201 | AL7: 取引先コード | AM7: =Y7 -> 5007500
B9: 内 訳 | D9: 契 約 | H9: 前回まで出来高 | J9: 今回出来高 | L9: 累計出来高 | P9: 名 称 | R9: 契 約 内 訳 | V9: 前回まで出来高 | X9: 今回出来高 | Z9: 累計出来高 | AD9: 名 称 | AF9: 契 約 内 訳 | AJ9: 前回まで出来高 | AL9: 今回出来高 | AN9: 累計出来高
D10: 数量 | E10: 単位 | F10: 単価 | G10: 金額 | H10: 数量 | I10: 金額 | J10: 数量 | K10: 金額 | L10: 数量 | M10: 金額 | R10: 数量 | S10: 単位 | T10: 単価 | U10: 金額 | V10: 数量 | W10: 金額 | X10: 数量 | Y10: 金額 | Z10: 数量 | AA10: 金額 | AF10: 数量 | AG10: 単位 | AH10: 単価 | AI10: 金額 | AJ10: 数量 | AK10: 金額 | AL10: 数量 | AM10: 金額 | AN10: 数量 | AO10: 金額
B11: SMW工事 | L11: =SUM(H11,J11) -> 0 | M11: =SUM(I11,K11) -> 0 | P11: =IF(B11="","",B11) -> SMW工事 | R11: =IF(D11="","",D11) ->  | Z11: 0 | AA11: 0 | AD11: =IF(P11="","",P11) -> SMW工事 | AF11: =IF(R11="","",R11) ->  | AN11: 0 | AO11: 0
B12: 施工費 | D12: 3000 | E12: m2 | F12: 5000 | G12: =D12*F12 -> 15000000 | H12: 1500 | I12: =F12*H12 -> 7500000 | J12: 1500 | K12: =F12*J12 -> 7500000 | L12: =SUM(H12,J12) -> 3000 | M12: 15000000 | P12: 施工費 | R12: 3000 | S12: m2 | T12: 5000 | U12: 15000000 | V12: 1500 | W12: 7500000 | X12: 1500 | Y12: 7500000 | Z12: 3000 | AA12: 15000000 | AD12: =IF(P12="","",P12) -> 施工費 | AF12: 3000 | AG12: m2 | AH12: 5000 | AI12: 15000000 | AJ12: 1500 | AK12: 7500000 | AL12: 1500 | AM12: 7500000 | AN12: 3000 | AO12: 15000000
B13: 労務費 | D13: 30 | E13: 日 | F13: 25000 | G13: =D13*F13 -> 750000 | H13: 20 | I13: =F13*H13 -> 500000 | J13: 10 | K13: =F13*J13 -> 250000 | L13: 30 | M13: 750000 | P13: 労務費 | R13: 30 | S13: 日 | T13: 25000 | U13: 750000 | V13: 20 | W13: 500000 | X13: 10 | Y13: 250000 | Z13: 30 | AA13: 750000 | AD13: 労務費 | AF13: 30 | AG13: 日 | AH13: 25000 | AI13: 750000 | AJ13: 20 | AK13: 500000 | AL13: 10 | AM13: 250000 | AN13: 30 | AO13: 750000
B14: 解体・搬出 | D14: 2 | E14: 式 | F14: 1500000 | G14: =D14*F14 -> 3000000 | H14: 1 | I14: =F14*H14 -> 1500000 | L14: 1 | M14: 1500000 | P14: 解体・搬出 | R14: 2 | S14: 式 | T14: 1500000 | U14: 3000000 | V14: 1 | W14: 1500000 | Z14: 1 | AA14: 1500000 | AD14: 解体・搬出 | AF14: 2 | AG14: 式 | AH14: 1500000 | AI14: 3000000 | AJ14: 1 | AK14: 1500000 | AN14: 1 | AO14: 1500000
B15: 運搬費 | D15: 1 | E15: 式 | F15: 2000000 | G15: =D15*F15 -> 2000000 | H15: 0.5 | I15: =F15*H15 -> 1000000 | L15: 0.5 | M15: 1000000 | P15: 運搬費 | R15: 1 | S15: 式 | T15: 2000000 | U15: 2000000 | V15: 0.5 | W15: 1000000 | Z15: 0.5 | AA15: 1000000 | AD15: 運搬費 | AF15: 1 | AG15: 式 | AH15: 2000000 | AI15: 2000000 | AJ15: 0.5 | AK15: 1000000 | AN15: 0.5 | AO15: 1000000
B16: （ 小 計 ） | G16: =SUM(G12:G15) -> 20750000 | I16: =SUM(I11:I15) -> 10500000 | K16: =SUM(K11:K15) -> 7750000 | L16: 0 | M16: 18250000 | P16: （ 小 計 ） | U16: 20750000 | W16: 10500000 | Y16: 7750000 | Z16: 0 | AA16: 18250000 | AD16: （ 小 計 ） | AI16: 20750000 | AK16: 10500000 | AM16: 7750000 | AN16: 0 | AO16: 18250000
L17: 0 | M17: 0 | Z17: 0 | AA17: 0 | AN17: 0 | AO17: 0
B18: 杭工事 | L18: 0 | M18: 0 | P18: 杭工事 | Z18: 0 | AA18: 0 | AD18: 杭工事 | AN18: 0 | AO18: 0
B19: 施工費 | D19: 500 | E19: ｍ | F19: 3000 | G19: =D19*F19 -> 1500000 | I19: =F19*H19 -> 0 | J19: 340 | K19: =F19*J19 -> 1020000 | L19: 340 | M19: =SUM(I19,K19) -> 1020000 | P19: 施工費 | R19: 500 | S19: ｍ | T19: 3000 | U19: 1500000 | W19: 0 | X19: 340 | Y19: 1020000 | Z19: 340 | AA19: 1020000 | AD19: 施工費 | AF19: 500 | AG19: ｍ | AH19: 3000 | AI19: 1500000 | AK19: 0 | AL19: 340 | AM19: 1020000 | AN19: 340 | AO19: 1020000
B20: 労務費 | D20: 15 | E20: 日 | F20: 25000 | G20: =D20*F20 -> 375000 | I20: 0 | J20: 10 | K20: =F20*J20 -> 250000 | L20: 10 | M20: 250000 | P20: 労務費 | R20: 15 | S20: 日 | T20: 25000 | U20: 375000 | W20: 0 | X20: 10 | Y20: 250000 | Z20: 10 | AA20: 250000 | AD20: 労務費 | AF20: 15 | AG20: 日 | AH20: 25000 | AI20: 375000 | AK20: 0 | AL20: 10 | AM20: 250000 | AN20: 10 | AO20: 250000
B21: 段取替 | D21: 1 | E21: 式 | F21: 500000 | G21: =D21*F21 -> 500000 | J21: 1 | K21: =F21*J21 -> 500000 | L21: 1 | M21: 500000 | P21: 段取替 | R21: 1 | S21: 式 | T21: 500000 | U21: 500000 | X21: 1 | Y21: 500000 | Z21: 1 | AA21: 500000 | AD21: 段取替 | AF21: 1 | AG21: 式 | AH21: 500000 | AI21: 500000 | AL21: 1 | AM21: 500000 | AN21: 1 | AO21: 500000
B22: （ 小 計 ） | G22: =SUM(G19:G21) -> 2375000 | I22: =SUM(I17:I21) -> 0 | K22: =SUM(K17:K21) -> 1770000 | L22: 0 | M22: 1770000 | P22: （ 小 計 ） | U22: 2375000 | W22: 0 | Y22: 1770000 | Z22: 0 | AA22: 1770000 | AD22: （ 小 計 ） | AI22: 2375000 | AK22: 0 | AM22: 1770000 | AN22: 0 | AO22: 1770000
L23: 0 | M23: =SUM(I23,K23) -> 0 | Z23: 0 | AA23: 0 | AN23: 0 | AO23: 0
B24: 値引調整 | D24: 1 | E24: 式 | F24: -25000 | G24: =D24*F24 -> -25000 | I24: 0 | K24: -20000 | L24: 0 | M24: -20000 | P24: 値引調整 | R24: 1 | S24: 式 | T24: -25000 | U24: -25000 | W24: 0 | Y24: -20000 | Z24: 0 | AA24: -20000 | AD24: 値引調整 | AF24: 1 | AG24: 式 | AH24: -25000 | AI24: -25000 | AK24: 0 | AM24: -20000 | AN24: 0 | AO24: -20000
L25: 0 | M25: =SUM(I25,K25) -> 0 | Z25: 0 | AA25: 0 | AN25: 0 | AO25: 0
B26: 備 考 | H26: 出来高 計 | I26: =SUM(I11:I25)-SUMIF(B11:C25,"（ 小 計 ）",I11:I25) -> 10500000 | J26: 出来高 計 | K26: =SUM(K11:K25)-SUMIF(B11:C25,"（ 小 計 ）",K11:K25) -> 9500000 | L26: 出来高 計 | M26: =SUM(I26,K26) -> 20000000 | P26: 備 考 | V26: 出来高 計 | W26: 10500000 | X26: 出来高 計 | Y26: 9500000 | Z26: 出来高 計 | AA26: 20000000 | AD26: 備 考 | AJ26: 出来高 計 | AK26: 10500000 | AL26: 出来高 計 | AM26: 9500000 | AN26: 出来高 計 | AO26: 20000000
H27: 保留金 | I27: -1050000 | J27: 保留金 | K27: -950000 | L27: 保留金 | M27: =SUM(I27,K27) -> -2000000 | P27: =IF(B27="","",B27) ->  | Q27: =IF(C27="","",C27) ->  | V27: 保留金 | W27: =IF(I27="","",I27) -> -1050000 | X27: 保留金 | Y27: =IF(K27="","",K27) -> -950000 | Z27: 保留金 | AA27: =IF(M27="","",M27) -> -2000000 | AD27: =IF(P27="","",P27) ->  | AE27: =IF(Q27="","",Q27) ->  | AJ27: 保留金 | AK27: =IF(W27="","",W27) -> -1050000 | AL27: 保留金 | AM27: =IF(Y27="","",Y27) -> -950000 | AN27: 保留金 | AO27: =IF(AA27="","",AA27) -> -2000000
H28: 保留金解除 | J28: 保留金解除 | L28: 保留金解除 | M28: 0 | V28: 保留金解除 | X28: 保留金解除 | Z28: 保留金解除 | AA28: 0 | AD28: =IF(P28="","",P28) ->  | AJ28: 保留金解除 | AL28: 保留金解除 | AN28: 保留金解除 | AO28: 0
D29: 契約金額 (税抜) | G29: =SUM(G11:G25)-SUMIF(B11:C25,"（ 小 計 ）",G11:G25) -> 23100000 | H29: 請求金額(税抜) | I29: =SUM(I26:I28) -> 9450000 | J29: 請求金額(税抜) | K29: =SUM(K26:K28) -> 8550000 | L29: 請求金額(税抜) | M29: 18000000 | R29: 契約金額 (税抜) | U29: =IF(G29="","",G29) -> 23100000 | V29: 請求金額(税抜) | W29: 9450000 | X29: 請求金額(税抜) | Y29: 8550000 | Z29: 請求金額(税抜) | AA29: 18000000 | AF29: 契約金額 (税抜) | AI29: =IF(U29="","",U29) -> 23100000 | AJ29: 請求金額(税抜) | AK29: 9450000 | AL29: 請求金額(税抜) | AM29: 8550000 | AN29: 請求金額(税抜) | AO29: 18000000
D30: 消費税 | F30: 0.08 | G30: =G29*F30 -> 1848000 | H30: 消費税 | I30: =I29*F30 -> 756000 | J30: 消費税 | K30: =K29*F30 -> 684000 | L30: 消費税 | M30: =SUM(I30,K30) -> 1440000 | R30: 消費税 | T30: =$F$30 -> 0.08 | U30: =IF(G30="","",G30) -> 1848000 | V30: 消費税 | W30: 756000 | X30: 消費税 | Y30: 684000 | Z30: 消費税 | AA30: 1440000 | AF30: 消費税 | AH30: =$F$30 -> 0.08 | AI30: =IF(U30="","",U30) -> 1848000 | AJ30: 消費税 | AK30: 756000 | AL30: 消費税 | AM30: 684000 | AN30: 消費税 | AO30: 1440000
D31: 契約金額 (税込) | G31: =SUM(G29:G30) -> 24948000 | H31: 請求金額(税込) | I31: =SUM(I29:I30) -> 10206000 | J31: 請求金額(税込) | K31: =SUM(K29:K30) -> 9234000 | L31: 請求金額(税込) | M31: =SUM(I31,K31) -> 19440000 | R31: 契約金額 (税込) | U31: =IF(G31="","",G31) -> 24948000 | V31: 請求金額(税込) | W31: 10206000 | X31: 請求金額(税込) | Y31: 9234000 | Z31: 請求金額(税込) | AA31: 19440000 | AF31: 契約金額 (税込) | AI31: =IF(U31="","",U31) -> 24948000 | AJ31: 請求金額(税込) | AK31: 10206000 | AL31: 請求金額(税込) | AM31: 9234000 | AN31: 請求金額(税込) | AO31: 19440000
P33: 決裁 | Q33: 査定・承認 | V33: 受付 | AD33: 決裁 | AE33: 査定・承認 | AJ33: 受付
C34: ※記入上の注意事項 | Z34: 伝票番号
C35: 1. 一現場一枚として記入し、二現場以上ある場合には現場別に請求書を作成してください。
C36: 2. 工事コード、工事・工種名、注文番号、取引先コードを必ず記入してください。不明のときは工事部に照会してください。

Sheet 記入例（明細あり）
A1: （請書請求用） | O1: （請書請求用） | AC1: （請書請求用）
F2: 請 求 書 | T2: 請 求 書 | AH2: 請 求 書
B3: 成幸利根株式会社 | D3: 御中 | J3: 住所 | K3: 東京都○○区□□1-1 | P3: 成幸利根株式会社 | R3: 御中 | X3: 住所 | Y3: =IF(K3="","",K3) -> 東京都○○区□□1-1 | AD3: 成幸利根株式会社 | AF3: 御中 | AL3: 住所 | AM3: =IF(Y3="","",Y3) -> 東京都○○区□□1-1
F4: 月度 | G4: 2016-08-01 | T4: 月度 | U4: =IF(G4="","",G4) -> 2016-08-01 | AH4: 月度 | AI4: =U4 -> 2016-08-01
B5: 請求金額 （税込） | C5: =IF(K31=0,"",K31) -> 9234000 | F5: 工事コード | G5: 1000001-0001 | J5: 社名 | K5: ○○重機株式会社 | P5: 請求金額 （税込） | Q5: =Y31 -> 9234000 | T5: 工事コード | U5: =IF(G5="","",G5) -> 1000001-0001 | V5: =IF(H5="","",H5) ->  | X5: 社名 | Y5: =IF(K5="","",K5) -> ○○重機株式会社 | AD5: 請求金額 （税込） | AE5: =AM31 -> 9234000 | AH5: 工事コード | AI5: =IF(U5="","",U5) -> 1000001-0001 | AL5: 社名 | AM5: =IF(Y5="","",Y5) -> ○○重機株式会社
F6: 工事・工種名 | G6: ○○ビル建設工事 | K6: □□支店 | T6: 工事・工種名 | U6: ○○ビル建設工事 | Y6: =IF(K6="","",K6) -> □□支店 | AH6: 工事・工種名 | AI6: ○○ビル建設工事 | AM6: =IF(Y6="","",Y6) -> □□支店
F7: 注文番号 | G7: HCI150000201 | J7: 取引先コード | K7: 1234567 | T7: 注文番号 | U7: HCI150000201 | X7: 取引先コード | Y7: =IF(K7="","",K7) -> 1234567 | AH7: 注文番号 | AI7: HCI150000201 | AL7: 取引先コード | AM7: =Y7 -> 1234567
B9: 内 訳 | D9: 契 約 | H9: 前回まで出来高 | J9: 今回出来高 | L9: 累計出来高 | P9: 名 称 | R9: 契 約 内 訳 | V9: 前回まで出来高 | X9: 今回出来高 | Z9: 累計出来高 | AD9: 名 称 | AF9: 契 約 内 訳 | AJ9: 前回まで出来高 | AL9: 今回出来高 | AN9: 累計出来高
D10: 数量 | E10: 単位 | F10: 単価 | G10: 金額 | H10: 数量 | I10: 金額 | J10: 数量 | K10: 金額 | L10: 数量 | M10: 金額 | R10: 数量 | S10: 単位 | T10: 単価 | U10: 金額 | V10: 数量 | W10: 金額 | X10: 数量 | Y10: 金額 | Z10: 数量 | AA10: 金額 | AF10: 数量 | AG10: 単位 | AH10: 単価 | AI10: 金額 | AJ10: 数量 | AK10: 金額 | AL10: 数量 | AM10: 金額 | AN10: 数量 | AO10: 金額
L11: =SUM(H11,J11) -> 0 | M11: =SUM(I11,K11) -> 0 | P11: =IF(B11="","",B11) ->  | R11: =IF(D11="","",D11) ->  | Z11: 0 | AA11: 0 | AD11: =IF(P11="","",P11) ->  | AF11: =IF(R11="","",R11) ->  | AN11: 0 | AO11: 0
B12: SMW工事 | D12: 1 | E12: 式 | F12: 20750000 | G12: =D12*F12 -> 20750000 | I12: 10500000 | K12: 7750000 | L12: =SUM(H12,J12) -> 0 | M12: 18250000 | P12: SMW工事 | R12: 1 | S12: 式 | T12: 20750000 | U12: 20750000 | W12: 10500000 | Y12: 7750000 | Z12: 0 | AA12: 18250000 | AD12: =IF(P12="","",P12) -> SMW工事 | AF12: 1 | AG12: 式 | AH12: 20750000 | AI12: 20750000 | AK12: 10500000 | AM12: 7750000 | AN12: 0 | AO12: 18250000
B13: 杭工事 | D13: 1 | E13: 式 | F13: 2375000 | G13: =D13*F13 -> 2375000 | K13: 1770000 | L13: 0 | M13: 1770000 | P13: 杭工事 | R13: 1 | S13: 式 | T13: 2375000 | U13: 2375000 | Y13: 1770000 | Z13: 0 | AA13: 1770000 | AD13: 杭工事 | AF13: 1 | AG13: 式 | AH13: 2375000 | AI13: 2375000 | AM13: 1770000 | AN13: 0 | AO13: 1770000
L14: 0 | M14: 0 | Z14: 0 | AA14: 0 | AN14: 0 | AO14: 0
L15: 0 | M15: 0 | Z15: 0 | AA15: 0 | AN15: 0 | AO15: 0
L16: 0 | M16: 0 | Z16: 0 | AA16: 0 | AN16: 0 | AO16: 0
L17: 0 | M17: 0 | Z17: 0 | AA17: 0 | AN17: 0 | AO17: 0
L18: 0 | M18: 0 | Z18: 0 | AA18: 0 | AN18: 0 | AO18: 0
L19: 0 | M19: =SUM(I19,K19) -> 0 | Z19: 0 | AA19: 0 | AN19: 0 | AO19: 0
L20: 0 | M20: 0 | Z20: 0 | AA20: 0 | AN20: 0 | AO20: 0
L21: 0 | M21: 0 | Z21: 0 | AA21: 0 | AN21: 0 | AO21: 0
L22: 0 | M22: 0 | Z22: 0 | AA22: 0 | AN22: 0 | AO22: 0
L23: 0 | M23: =SUM(I23,K23) -> 0 | Z23: 0 | AA23: 0 | AN23: 0 | AO23: 0
B24: 値引調整 | D24: 1 | E24: 式 | F24: -25000 | G24: =D24*F24 -> -25000 | K24: -20000 | L24: 0 | M24: -20000 | P24: 値引調整 | R24: 1 | S24: 式 | T24: -25000 | U24: -25000 | Y24: -20000 | Z24: 0 | AA24: -20000 | AD24: 値引調整 | AF24: 1 | AG24: 式 | AH24: -25000 | AI24: -25000 | AM24: -20000 | AN24: 0 | AO24: -20000
L25: 0 | M25: =SUM(I25,K25) -> 0 | Z25: 0 | AA25: 0 | AN25: 0 | AO25: 0
B26: 備 考 | H26: 出来高 計 | I26: =SUM(I11:I25)-SUMIF(B11:C25,"（ 小 計 ）",I11:I25) -> 10500000 | J26: 出来高 計 | K26: =SUM(K11:K25)-SUMIF(B11:C25,"（ 小 計 ）",K11:K25) -> 9500000 | L26: 出来高 計 | M26: =SUM(I26,K26) -> 20000000 | P26: 備 考 | V26: 出来高 計 | W26: 10500000 | X26: 出来高 計 | Y26: 9500000 | Z26: 出来高 計 | AA26: 20000000 | AD26: 備 考 | AJ26: 出来高 計 | AK26: 10500000 | AL26: 出来高 計 | AM26: 9500000 | AN26: 出来高 計 | AO26: 20000000
H27: 保留金 | I27: -1050000 | J27: 保留金 | K27: -950000 | L27: 保留金 | M27: =SUM(I27,K27) -> -2000000 | P27: =IF(B27="","",B27) ->  | V27: 保留金 | W27: =IF(I27="","",I27) -> -1050000 | X27: 保留金 | Y27: =IF(K27="","",K27) -> -950000 | Z27: 保留金 | AA27: =IF(M27="","",M27) -> -2000000 | AD27: =IF(P27="","",P27) ->  | AJ27: 保留金 | AK27: =IF(W27="","",W27) -> -1050000 | AL27: 保留金 | AM27: =IF(Y27="","",Y27) -> -950000 | AN27: 保留金 | AO27: =IF(AA27="","",AA27) -> -2000000
H28: 保留金解除 | J28: 保留金解除 | L28: 保留金解除 | M28: 0 | V28: 保留金解除 | X28: 保留金解除 | Z28: 保留金解除 | AA28: 0 | AJ28: 保留金解除 | AL28: 保留金解除 | AN28: 保留金解除 | AO28: 0
D29: 契約金額 (税抜) | G29: =SUM(G11:G25)-SUMIF(B11:C25,"（ 小 計 ）",G11:G25) -> 23100000 | H29: 請求金額(税抜) | I29: =SUM(I26:I28) -> 9450000 | J29: 請求金額(税抜) | K29: =SUM(K26:K28) -> 8550000 | L29: 請求金額(税抜) | M29: 18000000 | R29: 契約金額 (税抜) | U29: =IF(G29="","",G29) -> 23100000 | V29: 請求金額(税抜) | W29: 9450000 | X29: 請求金額(税抜) | Y29: 8550000 | Z29: 請求金額(税抜) | AA29: 18000000 | AF29: 契約金額 (税抜) | AI29: =IF(U29="","",U29) -> 23100000 | AJ29: 請求金額(税抜) | AK29: 9450000 | AL29: 請求金額(税抜) | AM29: 8550000 | AN29: 請求金額(税抜) | AO29: 18000000
D30: 消費税 | F30: 0.08 | G30: =G29*F30 -> 1848000 | H30: 消費税 | I30: =I29*F30 -> 756000 | J30: 消費税 | K30: =K29*F30 -> 684000 | L30: 消費税 | M30: =SUM(I30,K30) -> 1440000 | R30: 消費税 | T30: =$F$30 -> 0.08 | U30: =IF(G30="","",G30) -> 1848000 | V30: 消費税 | W30: 756000 | X30: 消費税 | Y30: 684000 | Z30: 消費税 | AA30: 1440000 | AF30: 消費税 | AH30: =$F$30 -> 0.08 | AI30: =IF(U30="","",U30) -> 1848000 | AJ30: 消費税 | AK30: 756000 | AL30: 消費税 | AM30: 684000 | AN30: 消費税 | AO30: 1440000
D31: 契約金額 (税込) | G31: =SUM(G29:G30) -> 24948000 | H31: 請求金額(税込) | I31: =SUM(I29:I30) -> 10206000 | J31: 請求金額(税込) | K31: =SUM(K29:K30) -> 9234000 | L31: 請求金額(税込) | M31: =SUM(I31,K31) -> 19440000 | R31: 契約金額 (税込) | U31: =IF(G31="","",G31) -> 24948000 | V31: 請求金額(税込) | W31: 10206000 | X31: 請求金額(税込) | Y31: 9234000 | Z31: 請求金額(税込) | AA31: 19440000 | AF31: 契約金額 (税込) | AI31: =IF(U31="","",U31) -> 24948000 | AJ31: 請求金額(税込) | AK31: 10206000 | AL31: 請求金額(税込) | AM31: 9234000 | AN31: 請求金額(税込) | AO31: 19440000
P33: 決裁 | Q33: 査定・承認 | V33: 受付 | AD33: 決裁 | AE33: 査定・承認 | AJ33: 受付
C34: ※記入上の注意事項 | Z34: 伝票番号
C35: 1. 一現場一枚として記入し、二現場以上ある場合には現場別に請求書を作成してください。
C36: 2. 工事コード、工事・工種名、注文番号、取引先コードを必ず記入してください。不明のときは工事部に照会してください。

Sheet 記入例（請求明細）
A1: 1 | N1: ="( "&A1&" / "&$N$40&" )" -> ( 1 / 1 )
C2: （ 請 求 明 細 ）
C4: 月度 | D4: =IF('記入例（明細あり）'!G4="","",'記入例（明細あり）'!G4) -> 2016-08-01
C5: 工事コード | D5: =IF('記入例（明細あり）'!G5="","",'記入例（明細あり）'!G5) -> 1000001-0001
C6: 工事・工種名 | D6: =IF('記入例（明細あり）'!G6="","",'記入例（明細あり）'!G6) -> ○○ビル建設工事 | K6: 社名 | L6: ='記入例（明細あり）'!K5 &" "&'記入例（明細あり）'!K6 -> ○○重機株式会社 □□支店
C7: 注文番号 | D7: =IF('記入例（明細あり）'!G7="","",'記入例（明細あり）'!G7) -> HCI150000201 | K7: 取引先コード | L7: =IF('記入例（明細あり）'!K7="","",'記入例（明細あり）'!K7) -> 1234567
C9: 内 訳 | E9: 契 約 | I9: 前回まで出来高 | K9: 今回出来高 | M9: 累計出来高
E10: 数量 | F10: 単位 | G10: 単価 | H10: 金額 | I10: 数量 | J10: 金額 | K10: 数量 | L10: 金額 | M10: 数量 | N10: 金額
A11: 1 | C11: SMW工事 | M11: =SUM(I11,K11) -> 0 | N11: =SUM(J11,L11) -> 0
A12: 1 | C12: 施工費 | E12: 3000 | F12: m2 | G12: 5000 | H12: =E12*G12 -> 15000000 | I12: 1500 | J12: =G12*I12 -> 7500000 | K12: 1500 | L12: =G12*K12 -> 7500000 | M12: =SUM(I12,K12) -> 3000 | N12: =SUM(J12,L12) -> 15000000
A13: 1 | C13: 労務費 | E13: 30 | F13: 日 | G13: 25000 | H13: =E13*G13 -> 750000 | I13: 20 | J13: =G13*I13 -> 500000 | K13: 10 | L13: =G13*K13 -> 250000 | M13: =SUM(I13,K13) -> 30 | N13: 750000
A14: 1 | C14: 解体・搬出 | E14: 2 | F14: 式 | G14: 1500000 | H14: =E14*G14 -> 3000000 | I14: 1 | J14: =G14*I14 -> 1500000 | M14: 1 | N14: 1500000
A15: 1 | C15: 運搬費 | E15: 1 | F15: 式 | G15: 2000000 | H15: =E15*G15 -> 2000000 | I15: 0.5 | J15: =G15*I15 -> 1000000 | M15: 0.5 | N15: 1000000
A16: 1 | C16: （ 小 計 ） | H16: =SUM(H12:H15) -> 20750000 | J16: =SUM(J11:J15) -> 10500000 | L16: =SUM(L11:L15) -> 7750000 | M16: 0 | N16: 18250000
A17: 1 | J17: =G17*I17 -> 0 | M17: 0 | N17: 0
A18: 1 | C18: 杭工事 | J18: 0 | M18: 0 | N18: 0
A19: 1 | C19: 施工費 | E19: 500 | F19: ｍ | G19: 3000 | H19: =E19*G19 -> 1500000 | J19: 0 | K19: 340 | L19: =G19*K19 -> 1020000 | M19: 340 | N19: 1020000
A20: 1 | C20: 労務費 | E20: 15 | F20: 日 | G20: 25000 | H20: =E20*G20 -> 375000 | J20: 0 | K20: 10 | L20: =G20*K20 -> 250000 | M20: 10 | N20: 250000
A21: 1 | C21: 段取替 | E21: 1 | F21: 式 | G21: 500000 | H21: =E21*G21 -> 500000 | K21: 1 | L21: =G21*K21 -> 500000 | M21: 1 | N21: 500000
A22: 1 | C22: （ 小 計 ） | H22: =SUM(H19:H21) -> 2375000 | J22: =SUM(J17:J21) -> 0 | L22: =SUM(L17:L21) -> 1770000 | M22: 0 | N22: 1770000
A23: 1 | M23: 0 | N23: 0
A24: 1 | C24: 値引調整 | E24: 1 | F24: 式 | G24: -25000 | H24: =E24*G24 -> -25000 | J24: 0 | L24: -20000 | M24: 0 | N24: -20000
A25: 1 | M25: 0 | N25: 0
A26: 1 | M26: 0 | N26: 0
A27: 1 | M27: 0 | N27: 0
A28: 1 | M28: 0 | N28: 0
A29: 1 | M29: 0 | N29: 0
A30: 1 | M30: 0 | N30: 0
A31: 1 | M31: 0 | N31: 0
A32: 1 | M32: 0 | N32: 0
A33: 1 | M33: 0 | N33: 0
A34: 1 | M34: 0 | N34: 0
A35: 1 | M35: 0 | N35: 0
C36: ページ 計 | H36: =SUM(H11:H35) -> 46225000 | J36: =SUM(J11:J35) -> 21000000 | L36: =SUM(L11:L35) -> 19020000 | N36: =SUM(N11:N35) -> 40020000
N39: ページ数
N40: =MAX(A:A) -> 1

Sheet コード39 (hidden)
S1: 1 | AF1: 2 | AS1: 3 | DS1: 9 | EF1: 10 | ES1: 11 | FF1: 12 | FS1: 13 | GF1: 14 | GS1: 15 | HF1: 16 | HS1: 17 | IF1: 18 | IS1: 19 | JF1: 20
A2: No. | B2: 名称 | C2: コード | D2: バーコードイメージ
A3: 1 | B3: 本社用 | C3: =IF(AND('請求書（表紙）'!AM7="",'請求書（表紙）'!AE5=""),"",'請求書（表紙）'!AM7&"-"&'請求書（表紙）'!AE5) -> 
F5: =IF($C3="","",Start39) ->  | S5: =IF(MID($C3,1,1)="","",INDEX(Area39,MATCH(MID($C3,1,1),Char39,0),0)) ->  | AF5: =IF(MID($C3,2,1)="",IF(LEN($C3)=1,Start39,""),INDEX(Area39,MATCH(MID($C3,2,1),Char39,0),0)) ->  | AS5: =IF(MID($C3,3,1)="",IF(LEN($C3)=2,Start39,""),INDEX(Area39,MATCH(MID($C3,3,1),Char39,0),0)) ->  | BF5: =IF(MID($C3,4,1)="",IF(LEN($C3)=3,Start39,""),INDEX(Area39,MATCH(MID($C3,4,1),Char39,0),0)) ->  | BS5: =IF(MID($C3,5,1)="",IF(LEN($C3)=4,Start39,""),INDEX(Area39,MATCH(MID($C3,5,1),Char39,0),0)) ->  | CF5: =IF(MID($C3,6,1)="",IF(LEN($C3)=5,Start39,""),INDEX(Area39,MATCH(MID($C3,6,1),Char39,0),0)) ->  | CS5: =IF(MID($C3,7,1)="",IF(LEN($C3)=6,Start39,""),INDEX(Area39,MATCH(MID($C3,7,1),Char39,0),0)) ->  | DF5: =IF(MID($C3,8,1)="",IF(LEN($C3)=7,Start39,""),INDEX(Area39,MATCH(MID($C3,8,1),Char39,0),0)) ->  | DS5: =IF(MID($C3,9,1)="",IF(LEN($C3)=8,Start39,""),INDEX(Area39,MATCH(MID($C3,9,1),Char39,0),0)) ->  | EF5: =IF(MID($C3,10,1)="",IF(LEN($C3)=9,Start39,""),INDEX(Area39,MATCH(MID($C3,10,1),Char39,0),0)) ->  | ES5: =IF(MID($C3,11,1)="",IF(LEN($C3)=10,Start39,""),INDEX(Area39,MATCH(MID($C3,11,1),Char39,0),0)) ->  | FF5: =IF(MID($C3,12,1)="",IF(LEN($C3)=11,Start39,""),INDEX(Area39,MATCH(MID($C3,12,1),Char39,0),0)) ->  | FS5: =IF(MID($C3,13,1)="",IF(LEN($C3)=12,Start39,""),INDEX(Area39,MATCH(MID($C3,13,1),Char39,0),0)) ->  | GF5: =IF(MID($C3,14,1)="",IF(LEN($C3)=13,Start39,""),INDEX(Area39,MATCH(MID($C3,14,1),Char39,0),0)) ->  | GS5: =IF(MID($C3,15,1)="",IF(LEN($C3)=14,Start39,""),INDEX(Area39,MATCH(MID($C3,15,1),Char39,0),0)) ->  | HF5: =IF(MID($C3,16,1)="",IF(LEN($C3)=15,Start39,""),INDEX(Area39,MATCH(MID($C3,16,1),Char39,0),0)) ->  | HS5: =IF(MID($C3,17,1)="",IF(LEN($C3)=16,Start39,""),INDEX(Area39,MATCH(MID($C3,17,1),Char39,0),0)) ->  | IF5: =IF(MID($C3,18,1)="",IF(LEN($C3)=17,Start39,""),INDEX(Area39,MATCH(MID($C3,18,1),Char39,0),0)) ->  | IS5: =IF(MID($C3,19,1)="",IF(LEN($C3)=18,Start39,""),INDEX(Area39,MATCH(MID($C3,19,1),Char39,0),0)) ->  | JF5: =IF(MID($C3,20,1)="",IF(LEN($C3)=19,Start39,""),INDEX(Area39,MATCH(MID($C3,20,1),Char39,0),0)) ->  | JS5: =IF(LEN(C3)=20,Start39,"") -> 
A9: 2 | B9: 注文番号 | C9: ='請求書（表紙）'!U7 -> 
F11: =IF($C9="","",Start39) ->  | S11: =IF(MID($C9,1,1)="","",INDEX(Area39,MATCH(MID($C9,1,1),Char39,0),0)) ->  | AF11: =IF(MID($C9,2,1)="",IF(LEN($C9)=1,Start39,""),INDEX(Area39,MATCH(MID($C9,2,1),Char39,0),0)) ->  | AS11: =IF(MID($C9,3,1)="",IF(LEN($C9)=2,Start39,""),INDEX(Area39,MATCH(MID($C9,3,1),Char39,0),0)) ->  | BF11: =IF(MID($C9,4,1)="",IF(LEN($C9)=3,Start39,""),INDEX(Area39,MATCH(MID($C9,4,1),Char39,0),0)) ->  | BS11: =IF(MID($C9,5,1)="",IF(LEN($C9)=4,Start39,""),INDEX(Area39,MATCH(MID($C9,5,1),Char39,0),0)) ->  | CF11: =IF(MID($C9,6,1)="",IF(LEN($C9)=5,Start39,""),INDEX(Area39,MATCH(MID($C9,6,1),Char39,0),0)) ->  | CS11: =IF(MID($C9,7,1)="",IF(LEN($C9)=6,Start39,""),INDEX(Area39,MATCH(MID($C9,7,1),Char39,0),0)) ->  | DF11: =IF(MID($C9,8,1)="",IF(LEN($C9)=7,Start39,""),INDEX(Area39,MATCH(MID($C9,8,1),Char39,0),0)) ->  | DS11: =IF(MID($C9,9,1)="",IF(LEN($C9)=8,Start39,""),INDEX(Area39,MATCH(MID($C9,9,1),Char39,0),0)) ->  | EF11: =IF(MID($C9,10,1)="",IF(LEN($C9)=9,Start39,""),INDEX(Area39,MATCH(MID($C9,10,1),Char39,0),0)) ->  | ES11: =IF(MID($C9,11,1)="",IF(LEN($C9)=10,Start39,""),INDEX(Area39,MATCH(MID($C9,11,1),Char39,0),0)) ->  | FF11: =IF(MID($C9,12,1)="",IF(LEN($C9)=11,Start39,""),INDEX(Area39,MATCH(MID($C9,12,1),Char39,0),0)) ->  | FS11: =IF(MID($C9,13,1)="",IF(LEN($C9)=12,Start39,""),INDEX(Area39,MATCH(MID($C9,13,1),Char39,0),0)) ->  | GF11: =IF(MID($C9,14,1)="",IF(LEN($C9)=13,Start39,""),INDEX(Area39,MATCH(MID($C9,14,1),Char39,0),0)) ->  | GS11: =IF(MID($C9,15,1)="",IF(LEN($C9)=14,Start39,""),INDEX(Area39,MATCH(MID($C9,15,1),Char39,0),0)) ->  | HF11: =IF(MID($C9,16,1)="",IF(LEN($C9)=15,Start39,""),INDEX(Area39,MATCH(MID($C9,16,1),Char39,0),0)) ->  | HS11: =IF(MID($C9,17,1)="",IF(LEN($C9)=16,Start39,""),INDEX(Area39,MATCH(MID($C9,17,1),Char39,0),0)) ->  | IF11: =IF(MID($C9,18,1)="",IF(LEN($C9)=17,Start39,""),INDEX(Area39,MATCH(MID($C9,18,1),Char39,0),0)) ->  | IS11: =IF(MID($C9,19,1)="",IF(LEN($C9)=18,Start39,""),INDEX(Area39,MATCH(MID($C9,19,1),Char39,0),0)) ->  | JF11: =IF(MID($C9,20,1)="",IF(LEN($C9)=19,Start39,""),INDEX(Area39,MATCH(MID($C9,20,1),Char39,0),0)) ->  | JS11: =IF(LEN(C9)=20,Start39,"") -> 
A15: 99 | B15: 記入例 | C15: ='記入例（明細なし）'!$AM$7&"-"&'記入例（明細なし）'!$AE$5 -> 5007500-9234000
F17: =IF($C15="","",Start39) -> 1 | G17: 0 | H17: 0 | I17: 1 | J17: 0 | K17: 1 | L17: 1 | M17: 0 | N17: 1 | O17: 1 | P17: 0 | Q17: 1 | S17: =IF(MID($C15,1,1)="","",INDEX(Area39,MATCH(MID($C15,1,1),Char39,0),0)) -> 1 | T17: 1 | U17: 0 | V17: 1 | W17: 0 | X17: 0 | Y17: 1 | Z17: 1 | AA17: 0 | AB17: 1 | AC17: 0 | AD17: 1 | AF17: =IF(MID($C15,2,1)="",IF(LEN($C15)=1,Start39,""),INDEX(Area39,MATCH(MID($C15,2,1),Char39,0),0)) -> 1 | AG17: 0 | AH17: 1 | AI17: 0 | AJ17: 0 | AK17: 1 | AL17: 1 | AM17: 0 | AN17: 1 | AO17: 1 | AP17: 0 | AQ17: 1 | AS17: =IF(MID($C15,3,1)="",IF(LEN($C15)=2,Start39,""),INDEX(Area39,MATCH(MID($C15,3,1),Char39,0),0)) -> 1 | AT17: 0 | AU17: 1 | AV17: 0 | AW17: 0 | AX17: 1 | AY17: 1 | AZ17: 0 | BA17: 1 | BB17: 1 | BC17: 0 | BD17: 1 | BF17: =IF(MID($C15,4,1)="",IF(LEN($C15)=3,Start39,""),INDEX(Area39,MATCH(MID($C15,4,1),Char39,0),0)) -> 1 | BG17: 0 | BH17: 1 | BI17: 0 | BJ17: 0 | BK17: 1 | BL17: 0 | BM17: 1 | BN17: 1 | BO17: 0 | BP17: 1 | BQ17: 1 | BS17: =IF(MID($C15,5,1)="",IF(LEN($C15)=4,Start39,""),INDEX(Area39,MATCH(MID($C15,5,1),Char39,0),0)) -> 1 | BT17: 1 | BU17: 0 | BV17: 1 | BW17: 0 | BX17: 0 | BY17: 1 | BZ17: 1 | CA17: 0 | CB17: 1 | CC17: 0 | CD17: 1 | CF17: =IF(MID($C15,6,1)="",IF(LEN($C15)=5,Start39,""),INDEX(Area39,MATCH(MID($C15,6,1),Char39,0),0)) -> 1 | CG17: 0 | CH17: 1 | CI17: 0 | CJ17: 0 | CK17: 1 | CL17: 1 | CM17: 0 | CN17: 1 | CO17: 1 | CP17: 0 | CQ17: 1 | CS17: =IF(MID($C15,7,1)="",IF(LEN($C15)=6,Start39,""),INDEX(Area39,MATCH(MID($C15,7,1),Char39,0),0)) -> 1 | CT17: 0 | CU17: 1 | CV17: 0 | CW17: 0 | CX17: 1 | CY17: 1 | CZ17: 0 | DA17: 1 | DB17: 1 | DC17: 0 | DD17: 1 | DF17: =IF(MID($C15,8,1)="",IF(LEN($C15)=7,Start39,""),INDEX(Area39,MATCH(MID($C15,8,1),Char39,0),0)) -> 1 | DG17: 0 | DH17: 0 | DI17: 1 | DJ17: 0 | DK17: 1 | DL17: 0 | DM17: 1 | DN17: 1 | DO17: 0 | DP17: 1 | DQ17: 1 | DS17: =IF(MID($C15,9,1)="",IF(LEN($C15)=8,Start39,""),INDEX(Area39,MATCH(MID($C15,9,1),Char39,0),0)) -> 1 | DT17: 0 | DU17: 1 | DV17: 1 | DW17: 0 | DX17: 0 | DY17: 1 | DZ17: 0 | EA17: 1 | EB17: 1 | EC17: 0 | ED17: 1 | EF17: =IF(MID($C15,10,1)="",IF(LEN($C15)=9,Start39,""),INDEX(Area39,MATCH(MID($C15,10,1),Char39,0),0)) -> 1 | EG17: 0 | EH17: 1 | EI17: 1 | EJ17: 0 | EK17: 0 | EL17: 1 | EM17: 0 | EN17: 1 | EO17: 0 | EP17: 1 | EQ17: 1 | ES17: =IF(MID($C15,11,1)="",IF(LEN($C15)=10,Start39,""),INDEX(Area39,MATCH(MID($C15,11,1),Char39,0),0)) -> 1 | ET17: 1 | EU17: 0 | EV17: 1 | EW17: 1 | EX17: 0 | EY17: 0 | EZ17: 1 | FA17: 0 | FB17: 1 | FC17: 0 | FD17: 1 | FF17: =IF(MID($C15,12,1)="",IF(LEN($C15)=11,Start39,""),INDEX(Area39,MATCH(MID($C15,12,1),Char39,0),0)) -> 1 | FG17: 0 | FH17: 1 | FI17: 0 | FJ17: 0 | FK17: 1 | FL17: 1 | FM17: 0 | FN17: 1 | FO17: 0 | FP17: 1 | FQ17: 1 | FS17: =IF(MID($C15,13,1)="",IF(LEN($C15)=12,Start39,""),INDEX(Area39,MATCH(MID($C15,13,1),Char39,0),0)) -> 1 | FT17: 0 | FU17: 1 | FV17: 0 | FW17: 0 | FX17: 1 | FY17: 1 | FZ17: 0 | GA17: 1 | GB17: 1 | GC17: 0 | GD17: 1 | GF17: =IF(MID($C15,14,1)="",IF(LEN($C15)=13,Start39,""),INDEX(Area39,MATCH(MID($C15,14,1),Char39,0),0)) -> 1 | GG17: 0 | GH17: 1 | GI17: 0 | GJ17: 0 | GK17: 1 | GL17: 1 | GM17: 0 | GN17: 1 | GO17: 1 | GP17: 0 | GQ17: 1 | GS17: =IF(MID($C15,15,1)="",IF(LEN($C15)=14,Start39,""),INDEX(Area39,MATCH(MID($C15,15,1),Char39,0),0)) -> 1 | GT17: 0 | GU17: 1 | GV17: 0 | GW17: 0 | GX17: 1 | GY17: 1 | GZ17: 0 | HA17: 1 | HB17: 1 | HC17: 0 | HD17: 1 | HF17: =IF(MID($C15,16,1)="",IF(LEN($C15)=15,Start39,""),INDEX(Area39,MATCH(MID($C15,16,1),Char39,0),0)) -> 1 | HG17: 0 | HH17: 0 | HI17: 1 | HJ17: 0 | HK17: 1 | HL17: 1 | HM17: 0 | HN17: 1 | HO17: 1 | HP17: 0 | HQ17: 1 | HS17: =IF(MID($C15,17,1)="",IF(LEN($C15)=16,Start39,""),INDEX(Area39,MATCH(MID($C15,17,1),Char39,0),0)) ->  | IF17: =IF(MID($C15,18,1)="",IF(LEN($C15)=17,Start39,""),INDEX(Area39,MATCH(MID($C15,18,1),Char39,0),0)) ->  | IS17: =IF(MID($C15,19,1)="",IF(LEN($C15)=18,Start39,""),INDEX(Area39,MATCH(MID($C15,19,1),Char39,0),0)) ->  | JF17: =IF(MID($C15,20,1)="",IF(LEN($C15)=19,Start39,""),INDEX(Area39,MATCH(MID($C15,20,1),Char39,0),0)) ->  | JS17: =IF(LEN(C15)=20,Start39,"") -> 

Sheet パターンデータ (hidden)
B1: コード39の符号
B2: 文字 | C2: 符号
B3: 0 | C3: 1 | D3: 0 | E3: 1 | F3: 0 | G3: 0 | H3: 1 | I3: 1 | J3: 0 | K3: 1 | L3: 1 | M3: 0 | N3: 1
B4: 1 | C4: 1 | D4: 1 | E4: 0 | F4: 1 | G4: 0 | H4: 0 | I4: 1 | J4: 0 | K4: 1 | L4: 0 | M4: 1 | N4: 1
B5: 2 | C5: 1 | D5: 0 | E5: 1 | F5: 1 | G5: 0 | H5: 0 | I5: 1 | J5: 0 | K5: 1 | L5: 0 | M5: 1 | N5: 1
B6: 3 | C6: 1 | D6: 1 | E6: 0 | F6: 1 | G6: 1 | H6: 0 | I6: 0 | J6: 1 | K6: 0 | L6: 1 | M6: 0 | N6: 1
B7: 4 | C7: 1 | D7: 0 | E7: 1 | F7: 0 | G7: 0 | H7: 1 | I7: 1 | J7: 0 | K7: 1 | L7: 0 | M7: 1 | N7: 1
B8: 5 | C8: 1 | D8: 1 | E8: 0 | F8: 1 | G8: 0 | H8: 0 | I8: 1 | J8: 1 | K8: 0 | L8: 1 | M8: 0 | N8: 1
B9: 6 | C9: 1 | D9: 0 | E9: 1 | F9: 1 | G9: 0 | H9: 0 | I9: 1 | J9: 1 | K9: 0 | L9: 1 | M9: 0 | N9: 1
B10: 7 | C10: 1 | D10: 0 | E10: 1 | F10: 0 | G10: 0 | H10: 1 | I10: 0 | J10: 1 | K10: 1 | L10: 0 | M10: 1 | N10: 1
B11: 8 | C11: 1 | D11: 1 | E11: 0 | F11: 1 | G11: 0 | H11: 0 | I11: 1 | J11: 0 | K11: 1 | L11: 1 | M11: 0 | N11: 1
B12: 9 | C12: 1 | D12: 0 | E12: 1 | F12: 1 | G12: 0 | H12: 0 | I12: 1 | J12: 0 | K12: 1 | L12: 1 | M12: 0 | N12: 1
B13: A | C13: 1 | D13: 1 | E13: 0 | F13: 1 | G13: 0 | H13: 1 | I13: 0 | J13: 0 | K13: 1 | L13: 0 | M13: 1 | N13: 1
B14: B | C14: 1 | D14: 0 | E14: 1 | F14: 1 | G14: 0 | H14: 1 | I14: 0 | J14: 0 | K14: 1 | L14: 0 | M14: 1 | N14: 1
B15: C | C15: 1 | D15: 1 | E15: 0 | F15: 1 | G15: 1 | H15: 0 | I15: 1 | J15: 0 | K15: 0 | L15: 1 | M15: 0 | N15: 1
B16: D | C16: 1 | D16: 0 | E16: 1 | F16: 0 | G16: 1 | H16: 1 | I16: 0 | J16: 0 | K16: 1 | L16: 0 | M16: 1 | N16: 1
B17: E | C17: 1 | D17: 1 | E17: 0 | F17: 1 | G17: 0 | H17: 1 | I17: 1 | J17: 0 | K17: 0 | L17: 1 | M17: 0 | N17: 1
B18: F | C18: 1 | D18: 0 | E18: 1 | F18: 1 | G18: 0 | H18: 1 | I18: 1 | J18: 0 | K18: 0 | L18: 1 | M18: 0 | N18: 1
B19: G | C19: 1 | D19: 0 | E19: 1 | F19: 0 | G19: 1 | H19: 0 | I19: 0 | J19: 1 | K19: 1 | L19: 0 | M19: 1 | N19: 1
B20: H | C20: 1 | D20: 1 | E20: 0 | F20: 1 | G20: 0 | H20: 1 | I20: 0 | J20: 0 | K20: 1 | L20: 1 | M20: 0 | N20: 1
B21: I | C21: 1 | D21: 0 | E21: 1 | F21: 1 | G21: 0 | H21: 1 | I21: 0 | J21: 0 | K21: 1 | L21: 1 | M21: 0 | N21: 1
B22: J | C22: 1 | D22: 0 | E22: 1 | F22: 0 | G22: 1 | H22: 1 | I22: 0 | J22: 0 | K22: 1 | L22: 1 | M22: 0 | N22: 1
B23: K | C23: 1 | D23: 1 | E23: 0 | F23: 1 | G23: 0 | H23: 1 | I23: 0 | J23: 1 | K23: 0 | L23: 0 | M23: 1 | N23: 1
B24: L | C24: 1 | D24: 0 | E24: 1 | F24: 1 | G24: 0 | H24: 1 | I24: 0 | J24: 1 | K24: 0 | L24: 0 | M24: 1 | N24: 1
B25: M | C25: 1 | D25: 1 | E25: 0 | F25: 1 | G25: 1 | H25: 0 | I25: 1 | J25: 0 | K25: 1 | L25: 0 | M25: 0 | N25: 1
B26: N | C26: 1 | D26: 0 | E26: 1 | F26: 0 | G26: 1 | H26: 1 | I26: 0 | J26: 1 | K26: 0 | L26: 0 | M26: 1 | N26: 1
B27: O | C27: 1 | D27: 1 | E27: 0 | F27: 1 | G27: 0 | H27: 1 | I27: 1 | J27: 0 | K27: 1 | L27: 0 | M27: 0 | N27: 1
B28: P | C28: 1 | D28: 0 | E28: 1 | F28: 1 | G28: 0 | H28: 1 | I28: 1 | J28: 0 | K28: 1 | L28: 0 | M28: 0 | N28: 1
B29: Q | C29: 1 | D29: 0 | E29: 1 | F29: 0 | G29: 1 | H29: 0 | I29: 1 | J29: 1 | K29: 0 | L29: 0 | M29: 1 | N29: 1
B30: R | C30: 1 | D30: 1 | E30: 0 | F30: 1 | G30: 0 | H30: 1 | I30: 0 | J30: 1 | K30: 1 | L30: 0 | M30: 0 | N30: 1
B31: S | C31: 1 | D31: 0 | E31: 1 | F31: 1 | G31: 0 | H31: 1 | I31: 0 | J31: 1 | K31: 1 | L31: 0 | M31: 0 | N31: 1
B32: T | C32: 1 | D32: 0 | E32: 1 | F32: 0 | G32: 1 | H32: 1 | I32: 0 | J32: 1 | K32: 1 | L32: 0 | M32: 0 | N32: 1
B33: U | C33: 1 | D33: 1 | E33: 0 | F33: 0 | G33: 1 | H33: 0 | I33: 1 | J33: 0 | K33: 1 | L33: 0 | M33: 1 | N33: 1
B34: V | C34: 1 | D34: 0 | E34: 0 | F34: 1 | G34: 1 | H34: 0 | I34: 1 | J34: 0 | K34: 1 | L34: 0 | M34: 1 | N34: 1
B35: W | C35: 1 | D35: 1 | E35: 0 | F35: 0 | G35: 1 | H35: 1 | I35: 0 | J35: 1 | K35: 0 | L35: 1 | M35: 0 | N35: 1
B36: X | C36: 1 | D36: 0 | E36: 0 | F36: 1 | G36: 0 | H36: 1 | I36: 1 | J36: 0 | K36: 1 | L36: 0 | M36: 1 | N36: 1
B37: Y | C37: 1 | D37: 1 | E37: 0 | F37: 0 | G37: 1 | H37: 0 | I37: 1 | J37: 1 | K37: 0 | L37: 1 | M37: 0 | N37: 1
B38: Z | C38: 1 | D38: 0 | E38: 0 | F38: 1 | G38: 1 | H38: 0 | I38: 1 | J38: 1 | K38: 0 | L38: 1 | M38: 0 | N38: 1
B39: - | C39: 1 | D39: 0 | E39: 0 | F39: 1 | G39: 0 | H39: 1 | I39: 0 | J39: 1 | K39: 1 | L39: 0 | M39: 1 | N39: 1
B40: . | C40: 1 | D40: 1 | E40: 0 | F40: 0 | G40: 1 | H40: 0 | I40: 1 | J40: 0 | K40: 1 | L40: 1 | M40: 0 | N40: 1
C41: 1 | D41: 0 | E41: 0 | F41: 1 | G41: 1 | H41: 0 | I41: 1 | J41: 0 | K41: 1 | L41: 1 | M41: 0 | N41: 1
B42: $ | C42: 1 | D42: 0 | E42: 0 | F42: 1 | G42: 0 | H42: 0 | I42: 1 | J42: 0 | K42: 0 | L42: 1 | M42: 0 | N42: 1
B43: / | C43: 1 | D43: 0 | E43: 0 | F43: 1 | G43: 0 | H43: 0 | I43: 1 | J43: 0 | K43: 1 | L43: 0 | M43: 0 | N43: 1
B44: + | C44: 1 | D44: 0 | E44: 0 | F44: 1 | G44: 0 | H44: 1 | I44: 0 | J44: 0 | K44: 1 | L44: 0 | M44: 0 | N44: 1
B45: % | C45: 1 | D45: 0 | E45: 1 | F45: 0 | G45: 0 | H45: 1 | I45: 0 | J45: 0 | K45: 1 | L45: 0 | M45: 0 | N45: 1
B46: * | C46: 1 | D46: 0 | E46: 0 | F46: 1 | G46: 0 | H46: 1 | I46: 1 | J46: 0 | K46: 1 | L46: 1 | M46: 0 | N46: 1
B48: NW-7の符号化パターン
B49: 文字 | C49: 符号
B50: 0 | C50: 101010011
B51: 1 | C51: 101011001
B52: 2 | C52: 101001011
B53: 3 | C53: 110010101
B54: 4 | C54: 101101001
B55: 5 | C55: 110101001
B56: 6 | C56: 100101011
B57: 7 | C57: 100101101
B58: 8 | C58: 100110101
B59: 9 | C59: 110100101
B60: - | C60: 101001101
B61: $ | C61: 101100101
B62: : | C62: 1101011011
B63: / | C63: 1101101011
B64: . | C64: 1101101101
B65: + | C65: 1011011011
B66: A | C66: 1011001001
B67: B | C67: 1001001011
B68: C | C68: 1010010011
B69: D | C69: 1010011001
